Cogmind - Beta 12 @@@ ROGUE MODE // 2023.03.04 @ 00:00:17 Player: ILikeGoodFood Result: Destroyed by S-10 Pest with Light Assault Rifle Performance ------------- Evolutions (0) 0 Regions Visited (4) 800 Robots Destroyed (13) 65 Value Destroyed (280) 280 Prototype IDs (3) 60 Alien Tech Used (0) 0 Bonus (0) 0 TOTAL SCORE: 1205 Bonus ------- None Cogmind --------- Core Integrity 0/250 Matter 289/300 Energy 85/100 System Corruption 7% Temperature Cool (0) Movement Core (50) Location -9/Mines Parts ------- > --- POWER (1) -------- (None) > --- PROPULSION (2) --- (None) > --- UTILITY (2) ------ Signal Interpreter Improved Terrain Scanner > --- WEAPON (2) ------- Light Assault Rifle > --- INVENTORY (5) ---- Ion Engine ECM Suite Decoy Drone Bay Peak State ------------ > --- POWER ------------ Nuclear Core > --- PROPULSION ------- Aluminum Leg Aluminum Leg > --- UTILITY ---------- Signal Interpreter Improved Terrain Scanner > --- WEAPON ----------- Assault Rifle Light Cannon > --- INVENTORY -------- Ion Engine ECM Suite Decoy Drone Bay Mining Laser [Rating: 12] Favorites ----------- Power Light Ion Engine Engine Light Ion Engine Power Core Nuclear Core Propulsion Aluminum Leg Leg Aluminum Leg Utility Improved Terrain Scanner Device Improved Terrain Scanner Processor Signal Interpreter Weapon Assault Rifle Ballistic Gun Assault Rifle Ballistic Cannon Light Cannon Special Weapon Mining Laser Build | -11 -10 -10 -10 -9 ------- Run | Jun Mat Min Exi Min Slots Evolved . | . . . . . Power . | . . . . . Propulsion . | . . . . . Utility . | . . . . . Weapon . | . . . . . Parts Attached 19 | 6 9 2 . 2 Power 3 | 1 1 1 . . Engine 2 | 1 1 . . . Core 1 | . . 1 . . Reactor . | . . . . . Propulsion 6 | 2 4 . . . Treads . | . . . . . Leg 6 | 2 4 . . . Wheel . | . . . . . Hover . | . . . . . Flight . | . . . . . Utility 4 | 1 3 . . . Device 3 | 1 2 . . . Storage . | . . . . . Processor 1 | . 1 . . . Hackware . | . . . . . Protection . | . . . . . Artifact . | . . . . . Weapon 6 | 2 1 1 . 2 Energy Gun . | . . . . . Energy Cannon . | . . . . . Ballistic Gun 4 | 2 1 . . 1 Ballistic Cannon 1 | . . 1 . . Launcher . | . . . . . Special Weapon 1 | . . . . 1 Impact Weapon . | . . . . . Slashing Weapon . | . . . . . Piercing Weapon . | . . . . . Special Melee Weapon . | . . . . . Unidentified Prototypes . | . . . . . Parts Lost 7 | . 1 . . 6 Power 1 | . . . . 1 Propulsion 2 | . . . . 2 Utility 1 | . 1 . . . Weapon 3 | . . . . 3 Highest Loss Streak 6 | . 1 . . 6 To Critical Strikes . | . . . . . Average Slot Usage (%) 96 | . 94 100 100 87 Engine 7 | . 14 11 . . Core 6 | . . 2 14 13 Leg 27 | . 28 28 28 23 Device 16 | . 22 14 14 14 Processor 9 | . . 14 14 14 Ballistic Gun 19 | . 28 18 14 10 Ballistic Cannon 8 | . . 9 14 10 Naked Turns . | . . . . . Heaviest Build 13 | 7 9 13 13 13 Greatest Support 20 | 20 20 20 20 20 Greatest Overweight (x) 2 | 1 . . . 2 Average Overweight (x) . | . . . . . Largest Inventory Capacity 5 | 5 5 5 5 5 Average Capacity 5 | 5 5 5 5 5 Most Carried 5 | 4 5 5 5 5 Average Carried 4 | 2 4 4 5 4 Final Capacity 5 | 5 5 5 5 5 Final Carried 5 | 3 4 5 5 4 Class Distribution -------------------- 88% | Mutant 11% | Scavenger-Mutant Dominant Class ---------------- Mutant | -10/Materials Mutant | -10/Mines Mutant | -10/Exiles Mutant | -9/Mines Resources | -11 -10 -10 -10 -9 ----------- Run | Jun Mat Min Exi Min Matter Collected 533 | 121 345 26 . 41 Remotely . | . . . . . Salvage Created 386 | 12 339 . . 35 Parts 35 | 3 27 . . 5 Haulers Intercepted 1 | . 1 . . . Recyclers Shooed . | . . . . . Parts Field Recycled . | . . . . . Retrieved Matter . | . . . . . Parts Self-Destructed . | . . . . . Prevented . | . . . . . Kills | -11 -10 -10 -10 -9 ------- Run | Jun Mat Min Exi Min Combat Hostiles Destroyed 9 | . 6 . . 3 Melee 1 | . . . . 1 Guns 6 | . 6 . . . Cannons 2 | . . . . 2 Classes Destroyed 4 | 1 2 . . 1 Tunneler 3 | 1 2 . . . Hauler 1 | . 1 . . . Swarmer 3 | . . . . 3 Grunt 6 | . 6 . . . Best Kill Streak 4 | 1 4 . . 1 Combat Bots Only 3 | . 3 . . 1 Max Kills in Single Turn 2 | 1 2 . . 1 Gunslinging . | . . . . . Exploded . | . . . . . Melee 1 | . . . . 1 Uniques/NPCs Destroyed . | . . . . . Combat | -11 -10 -10 -10 -9 -------- Run | Jun Mat Min Exi Min Damage Taken 997 | . 485 32 . 480 Core 252 | . 83 . . 169 Absorbed by Shields . | . . . . . Core Remaining (%) 100 | 100 . . . . Volleys Fired 43 | 4 31 . . 8 Largest 2 | 2 2 . . 2 Hottest 120 | 40 40 . . 120 Shots Fired 84 | 8 62 . . 14 Gun 77 | 8 62 . . 7 Cannon 5 | . . . . 5 Launcher . | . . . . . Special 2 | . . . . 2 Kinetic 82 | 8 62 . . 12 Thermal 2 | . . . . 2 Explosive . | . . . . . Electromagnetic . | . . . . . Robot Hit Streak 10 | 2 10 . . 2 Robot Miss Streak 6 | 2 3 . . 6 Penetration Max . | . . . . . Secondary Targets 2 | . 2 . . . Max Gunslinging Chain 1 | . 1 . . . Shots Hit Robots 52 | 4 43 . . 5 Core Hits 30 | 3 20 . . 7 Critical Kills . | . . . . . Critical Parts Destroyed . | . . . . . Critical Strikes . | . . . . . Melee Attacks . | . . . . . Impact . | . . . . . Slashing . | . . . . . Piercing . | . . . . . Sneak Attacks . | . . . . . Combat Hostiles . | . . . . . Follow-up Attacks . | . . . . . Damage Inflicted 668 | 52 485 . . 131 Guns 574 | 52 485 . . 37 Cannons 17 | . . . . 17 Explosions . | . . . . . Melee . | . . . . . Ramming 29 | . . . . 29 Kinetic 591 | 52 485 . . 54 Thermal 48 | . . . . 48 Explosive . | . . . . . Electromagnetic . | . . . . . Impact . | . . . . . Slashing . | . . . . . Piercing . | . . . . . Highest Corruption 7 | . . . . 7 Average Corruption 5 | . . . . 5 Corruption Purged . | . . . . . Corruption Blocked . | . . . . . Overload Shots . | . . . . . Overflow Damage . | . . . . . Projectiles . | . . . . . Explosions . | . . . . . Melee . | . . . . . Knockbacks . | . . . . . Impact . | . . . . . Kinetic . | . . . . . Secondary . | . . . . . Self-Inflicted Damage 6 | . . . . 6 Shots . | . . . . . Rammed 18 | . . . . 18 Targets Rammed 28 | . . . . 28 Kicked 10 | . . . . 10 Crushed . | . . . . . Highest Temperature 58 | . 37 . . 58 Average Temperature 16 | . 13 . . 28 Received Heat Transfer 303 | . 285 18 . . Siege Activations . | . . . . . Robots Corrupted . | . . . . . Combat Hostiles . | . . . . . Parts Fried . | . . . . . Impact Corruptions . | . . . . . Robots Melted . | . . . . . Combat Hostiles . | . . . . . Parts Melted . | . . . . . Heat Transferred 100 | . . . . 100 Parts Sabotaged . | . . . . . Parts Stolen . | . . . . . Parts Stripped . | . . . . . Power Chain Reactions . | . . . . . Missiles Intercepted . | . . . . . Alert | -11 -10 -10 -10 -9 ------- Run | Jun Mat Min Exi Min Peak Influence 196 | 5 196 9 . 30 Initial 9 | . 3 9 . . Average 29 | 1 66 6 . 4 Maximum Alert Level . | . . . . . Low Security (%) 100 | 100 100 100 . 100 Level 1 . | . . . . . Level 2 . | . . . . . Level 3 . | . . . . . Level 4 . | . . . . . Level 5 . | . . . . . High Security . | . . . . . Max Security . | . . . . . Squads Dispatched 3 | . 2 1 . . Investigation 2 | . 1 1 . . Extermination . | . . . . . Reinforcement 1 | . 1 . . . Assault . | . . . . . Garrison . | . . . . . Intercept . | . . . . . Searches Triggered . | . . . . . Construction Impeded . | . . . . . Haulers Reinforced . | . . . . . Active Scanning Responses . | . . . . . Cargo Convoy Interrupts . | . . . . . Stealth | -11 -10 -10 -10 -9 --------- Run | Jun Mat Min Exi Min Distress Signals 2 | . 2 . . . Communications Jammed . | . . . . . Distress Signals . | . . . . . Times Spotted 20 | . 14 2 . 4 Peak Tracking Total 4 | . 3 2 . 4 Tactical Retreats . | . . . . . Traps | -11 -10 -10 -10 -9 ------- Run | Jun Mat Min Exi Min Traps Triggered 1 | . 1 . . . Indirectly . | . . . . . Trap Hack Attempts . | . . . . . Triggered . | . . . . . Disarmed 8 | . 8 . . . Reprogrammed . | . . . . . Reused . | . . . . . Traps Extracted . | . . . . . Installed . | . . . . . Triggered . | . . . . . Machines | -11 -10 -10 -10 -9 ---------- Run | Jun Mat Min Exi Min Machines Disabled 1 | . 1 . . . Max in Single Turn 1 | . 1 . . . Machines Repaired . | . . . . . Machines Sabotaged . | . . . . . Overloaded Fab Kills . | . . . . . Hacking | -11 -10 -10 -10 -9 --------- Run | Jun Mat Min Exi Min Machines Accessed 12 | . 6 2 4 . Terminals 6 | . 6 . . . Fabricators . | . . . . . Repair Stations . | . . . . . Recycling Units . | . . . . . Scanalyzers . | . . . . . Garrison Access . | . . . . . Total Hacks 54 | . 23 2 29 . Successful 46 | . 15 2 29 . Failed 8 | . 8 . . . Catastrophic . | . . . . . Database Lockouts . | . . . . . Manual 6 | . 5 . 1 . Terminals 23 | . 23 . . . Fabricators . | . . . . . Repair Stations . | . . . . . Recycling Units . | . . . . . Scanalyzers . | . . . . . Garrison Access . | . . . . . Terminal Hacks 46 | . 15 2 29 . Record 29 | . . . 29 . Prototype ID Bank 2 | . 2 . . . Open Door 2 | . . 2 . . Terminal Index 1 | . 1 . . . Unreport Threat 1 | . 1 . . . Locate Traps 4 | . 4 . . . Disarm Traps 2 | . 2 . . . Hauler Manifests 1 | . 1 . . . Zone Layout 4 | . 4 . . . Fabricator Hacks . | . . . . . Repair Station Hacks . | . . . . . Recycling Unit Hacks . | . . . . . Scanalyzer . | . . . . . Garrison Access Hacks . | . . . . . Unauthorized Hacks . | . . . . . Terminals . | . . . . . Fabricators . | . . . . . Repair Stations . | . . . . . Recycling Units . | . . . . . Scanalyzers . | . . . . . Garrison Access . | . . . . . Data Cores Recovered . | . . . . . Used . | . . . . . Hacking Detections 6 | . 6 . . . Full Trace Events . | . . . . . Feedback Events . | . . . . . Feedback Blocked . | . . . . . Robot Schematics Acquired . | . . . . . Robots Built . | . . . . . Authchips . | . . . . . Time . | . . . . . Total Robot Build Rating . | . . . . . Part Schematics Acquired . | . . . . . Parts Built . | . . . . . Authchips . | . . . . . Time . | . . . . . Total Part Build Rating . | . . . . . Parts Repaired . | . . . . . Time . | . . . . . Parts Recycled . | . . . . . Recycled Matter . | . . . . . Retrieved Matter . | . . . . . Retrieved Components . | . . . . . Parts Scanalyzed . | . . . . . Part Schematics Acquired . | . . . . . Parts Damaged . | . . . . . Bothacking | -11 -10 -10 -10 -9 ------------ Run | Jun Mat Min Exi Min Used RIF Installer . | . . . . . Robots Hacked . | . . . . . Non-combat . | . . . . . Combat . | . . . . . Robot Hacks Applied . | . . . . . Relay Couplers Released . | . . . . . Fabnet Peak Effective % . | . . . . . Robots Rewired . | . . . . . Allies Hacked . | . . . . . Hacks Repelled . | . . . . . Allies | -11 -10 -10 -10 -9 -------- Run | Jun Mat Min Exi Min Total Allies . | . . . . . Largest Group . | . . . . . Highest-Rated Group . | . . . . . Highest-Rated Ally . | . . . . . Total Orders . | . . . . . Ally Attacks . | . . . . . Total Damage . | . . . . . Kills . | . . . . . Allies Corrupted . | . . . . . Allies Melted . | . . . . . Intel | -11 -10 -10 -10 -9 ------- Run | Jun Mat Min Exi Min Robot Analysis Total . | . . . . . Derelict Logs Recovered 3 | . . 3 . . Drone Launches . | . . . . . Drone Recoveries . | . . . . . Exploration | -11 -10 -10 -10 -9 ------------- Run | Jun Mat Min Exi Min Turns Passed 2052 | 79 588 589 586 210 Spaces Moved 1438 | 51 294 485 489 119 Core 21 | 19 . . . 2 Treads . | . . . . . Legs 1417 | 32 294 485 489 117 Wheels . | . . . . . Hover . | . . . . . Flight . | . . . . . Fastest Speed 50 | 50 120 120 120 50 Average Speed 119 | 104 120 120 120 119 Slowest Speed 150 | 120 120 120 120 150 Overloaded Moves . | . . . . . Propulsion Burnouts . | . . . . . Robots Hopped . | . . . . . Cave-ins Triggered . | . . . . . Exploration Rate (%) 57 | 4 72 88 90 35 Regions Visited 4 Branch Regions 3 Pre-discovered Areas 3 | . . 2 1 . Known Exits Taken 3 | . 1 1 1 . Unknown Exits Taken 1 | 1 . . . . Scrap Searched 2 | . . 1 . 1 Spaces Dug . | . . . . . Terrain Destroyed . | . . . . . Melee . | . . . . . Projectile . | . . . . . AOE . | . . . . . Terrain Rammed . | . . . . . Walls Destroyed . | . . . . . Machines Disabled . | . . . . . Actions | -11 -10 -10 -10 -9 --------- Run | Jun Mat Min Exi Min Total 1678 | 69 470 492 488 159 Wait 130 | . 127 2 . 1 Move 1434 | 50 293 484 488 119 Hop . | . . . . . Pick Up 16 | 9 5 1 . 1 Fast Attach 4 | . 2 2 . . Attach 9 | 6 1 . . 2 Detach . | . . . . . Swap 6 | . 6 . . . Drop 8 | . 5 3 . . Fire 43 | 4 31 . . 8 Melee . | . . . . . Ram 18 | . . . . 18 Kick 10 | . . . . 10 Crush . | . . . . . Escape Stasis . | . . . . . Rewire . | . . . . . Trap . | . . . . . Miscellaneous . | . . . . . Route ------- -11/Junkyard -10/Materials (discovered 3 exits: *Mat x2 / *Min) -10/Mines (discovered 3 exits: *Mat x2 / *Exi) -10/Exiles (discovered 2 exits: *Min x2) -9/Mines (discovered 1 exit: *Mat) History --------- Turn | Location | Event 23 | -11/Junkyard | Discovered new exit (range 15) 80 | -11/Junkyard | Entered Materials 381 | -10/Materials | Discovered new exit (range 16) 536 | -10/Materials | Discovered new exit (range 18) 536 | -10/Materials | Discovered new exit (range 15) 668 | -10/Materials | Identified exit to Mines 668 | -10/Materials | Entered Mines 690 | -10/Mines | Discovered new exit (range 9) 700 | -10/Mines | Identified exit to Materials 789 | -10/Mines | Found the Drone Emporium 794 | -10/Mines | Found Prototype Device 814 | -10/Mines | Build established: Mutant 821 | -10/Mines | Learned location of Storage (-7) 844 | -10/Mines | Learned location of Recycling (-7) 1010 | -10/Mines | Discovered exit to Materials (range 15) 1014 | -10/Mines | Received a Rocket Launcher from a helpful Derelict 1039 | -10/Mines | Learned location of 2 exits from Materials 1137 | -10/Mines | Met a Derelict shopkeep closing up shop 1252 | -10/Mines | Deemed a non-threat by the Exiles lab entrance 1252 | -10/Mines | Discovered new exit (range 5) 1256 | -10/Mines | Identified exit to Exiles 1257 | -10/Mines | Entered Exiles 1275 | -10/Exiles | Discovered new exit (range 15) 1291 | -10/Exiles | Identified exit to Mines 1317 | -10/Exiles | Met 8R-AWN 1337 | -10/Exiles | Met EX-HEX 1392 | -10/Exiles | Met EX-BIN 1505 | -10/Exiles | Met EX-DEC 1514 | -10/Exiles | Learned location of Zion (-7) 1567 | -10/Exiles | Discovered exit to Mines (range 12) 1659 | -10/Exiles | Visited The Gauntlet 1843 | -10/Exiles | Entered Mines 1880 | -9/Mines | Met a Derelict bent on vengeance 1924 | -9/Mines | Discovered new exit (range 10) 1934 | -9/Mines | Identified exit to Materials 2015 | -9/Mines | Core integrity fell below 50% 2042 | -9/Mines | Core integrity fell below 20% 2053 | -9/Mines | Destroyed by S-10 Pest with Light Assault Rifle Last Messages --------------- Kicked S-10 Pest. Aluminum Leg destroyed. Kicked S-10 Pest. Kicked S-10 Pest out of the way. Aluminum Leg destroyed. Slammed into S-10 Pest. Destabilizing: Core damaged (-2). Slammed into S-10 Pest. Destabilizing: System corrupted (+2). Slammed into S-10 Pest. Destabilizing: System corrupted (+1). Slammed into S-10 Pest. Destabilizing: System corrupted (+2). Slammed into S-10 Pest. Destabilizing: System corrupted (+2). Slammed into S-10 Pest. Nuclear Core destroyed. Slammed into S-10 Pest. S-10 Pest destroyed. Acquired Lgt. Assault Rifle. Map ----- +----------------------------------------------------+ | ???????????????????????## #?## ##??? | | ???????????????????????# % #??# #??? | | ??????????????????????## * #?### #??? | | ??????????##?????????## ##???## ###?? | | ?????????????#??????## ##???#?# #####???? | | ??????????????#????## #?????## ##???????? | | ?????????????????#??#[! ##?#### ##???????? | | ???????????????#????## #??# #?##????? | | ????????????????#????## #??# ### #???????? | | ??????????????????????# #### #######???????? | | ??????????????????????# #?????????#?? | | ???????????? ???????#?# ##%### #???????????? | | ?????????????????#???## ##%#?# #??#####????? | | ??????????#?????????## %## ### #??# #?#??# | | ????????????????????# %%%%#?# #?## ####?? | | ?????????????# ###%#?# #?# #?? | | ?????????????## ##?#%#?# ### #?? | | ??????????????# #???#%#?# ### ##? | | ?????????????# ##???#%#?# #?? | | ????????????# ## #????##s#?##### #?? | | ????????????# #?# ???#?##%###???# #?? | | ????????????####??# ######%%% ##??#########?? | | ??????????????????# %%%% #??##????????? | | ??????????????????##### =%= #???????#????? | | ??????????????????????# *%#####???#??#?????? | | ??????????????##??????## @##?##?????????????? | | ???????????????????????####??????#??????????? | | ????????????????????????????????????????????? | | ???????????????????????????????????????????#? | | | | | | | | | | | | | | | | | | | | | | | | | | | | | | | | | | | | | | | | | | | +----------------------------------------------------+ Best States ------------- Heat Dissipation 25 Energy Generation 14 Energy Capacity 240 Matter Stores 300 Matter Capacity 300 Sight Range 16 Terrain Scan Range 16 Terrain Scan Density 10 Evasion (%) 55 Item Schematics ----------------- None Robot Schematics ------------------ None Fabricated ------------ Nothing Alien Tech Used ----------------- None Achievements -------------- None Challenges ------------ None Game ------ Seed ChipSigixKinecellerator Manual? 0 Play Time 00:20:14 Cumulative 40.3 hours Start 2023.03.03 @ 23:41:38 End 2023.03.04 @ 00:00:17 Sessions 1 Manual Loads 0 Difficulty Rogue Special Mode None Game No. 68 Rogue 68 Adventurer 0 Explorer 0 Win Type - Total 0 Types 0/0/0/0/0/0/0/0/0 Lore% 22 Gallery% 28 Achievement% 22 Wizard Run 0 Options --------- ASCII 0 Keyboard 0 Movement Mouse Keybinds 0 Fullscreen 2 Font 24/Smallcaps Map View 76x50 Tactical HUD 0 Map Filters NONE Filters NONE Steam 1 RUN: 91508696-2e7e-4147-b842-ae1be96c0352